[Event "*** SCC Grand Prix: Titled Tuesday Blitz"]
[Site "Chess.com"]
[Date "2020.06.23"]
[Round "6"]
[White "MVM2008"]
[Black "arvielozano"]
[Result "1-0"]
[WhiteElo "2051"]
[BlackElo "1832"]
[TimeControl "180+1"]
[EndTime "11:08:26 PDT"]
[Termination "MVM2008 won on time"]

1. e4 {[%clk 0:03:00.9]} 1... g6 {[%clk 0:02:10.7]} 2. d4 {[%clk 0:03:00.5]}
2... Bg7 {[%clk 0:02:10.8]} 3. Nc3 {[%clk 0:03:00.2]} 3... Nf6 {[%clk
0:02:10.9]} 4. e5 {[%clk 0:03:00]} 4... Ng8 {[%clk 0:02:10]} 5. Nf3 {[%clk
0:02:59.4]} 5... d6 {[%clk 0:02:10.4]} 6. exd6 {[%clk 0:02:54]} 6... cxd6 {[%clk
0:02:04.6]} 7. Bd3 {[%clk 0:02:53]} 7... Nf6 {[%clk 0:02:04.1]} 8. h4 {[%clk
0:02:51.6]} 8... h5 {[%clk 0:02:00.4]} 9. Ng5 {[%clk 0:02:51]} 9... Nc6 {[%clk
0:01:59]} 10. Be3 {[%clk 0:02:50.2]} 10... d5 {[%clk 0:01:55.6]} 11. f3 {[%clk
0:02:46.3]} 11... Qb6 {[%clk 0:01:52.4]} 12. Qd2 {[%clk 0:02:42.3]} 12... Bd7
{[%clk 0:01:44.7]} 13. O-O-O {[%clk 0:02:39.1]} 13... Nb4 {[%clk 0:01:39.9]} 14.
Rhe1 {[%clk 0:02:27.2]} 14... Rc8 {[%clk 0:01:33.7]} 15. Kb1 {[%clk 0:02:15.5]}
15... Qa5 {[%clk 0:01:21]} 16. a3 {[%clk 0:02:11.2]} 16... Nxd3 {[%clk
0:01:18.1]} 17. Qxd3 {[%clk 0:02:10]} 17... Bf5 {[%clk 0:01:15.4]} 18. Qd2
{[%clk 0:01:57.8]} 18... O-O {[%clk 0:01:13.5]} 19. Rc1 {[%clk 0:01:37.7]} 19...
Rc4 {[%clk 0:01:00]} 20. Ka2 {[%clk 0:01:00.9]} 20... Rfc8 {[%clk 0:00:55.6]}
21. Nb1 {[%clk 0:00:46.4]} 21... Qb6 {[%clk 0:00:45.9]} 22. c3 {[%clk
0:00:41.7]} 22... a5 {[%clk 0:00:37.6]} 23. Qd1 {[%clk 0:00:24]} 23... a4 {[%clk
0:00:19.7]} 24. Nd2 {[%clk 0:00:21.8]} 24... R4c6 {[%clk 0:00:16.5]} 25. Ra1
{[%clk 0:00:14.6]} 25... Qa5 {[%clk 0:00:14.6]} 26. Qc1 {[%clk 0:00:09.1]} 26...
b5 {[%clk 0:00:14.5]} 27. Nh3 {[%clk 0:00:05]} 27... b4 {[%clk 0:00:07.6]} 28.
cxb4 {[%clk 0:00:04.5]} 28... Qb5 {[%clk 0:00:06.9]} 29. Qd1 {[%clk 0:00:02.6]}
29... Bc2 {[%clk 0:00:05.1]} 30. Qe2 {[%clk 0:00:03]} 30... Bd3 {[%clk
0:00:05.6]} 31. Qd1 {[%clk 0:00:03.1]} 31... Bc4+ {[%clk 0:00:05.7]} 32. Nxc4
{[%clk 0:00:03.1]} 32... Qxc4+ {[%clk 0:00:06.6]} 33. Kb1 {[%clk 0:00:04]} 33...
Qb5 {[%clk 0:00:06.2]} 34. Qe2 {[%clk 0:00:03.8]} 34... Rc4 {[%clk 0:00:05.7]}
35. Qd2 {[%clk 0:00:03.3]} 35... Qc6 {[%clk 0:00:05.7]} 36. Ka2 {[%clk
0:00:02.9]} 36... Nd7 {[%clk 0:00:05.8]} 37. Rac1 {[%clk 0:00:02.4]} 37... Nb6
{[%clk 0:00:05.5]} 38. Rxc4 {[%clk 0:00:02.5]} 38... Nxc4 {[%clk 0:00:05.8]} 39.
Qc3 {[%clk 0:00:02.5]} 39... e6 {[%clk 0:00:06.1]} 40. Nf4 {[%clk 0:00:02.3]}
40... Nxe3 {[%clk 0:00:06.1]} 41. Rxe3 {[%clk 0:00:02.3]} 41... Qc4+ {[%clk
0:00:05.2]} 42. Qxc4 {[%clk 0:00:02.5]} 42... Rxc4 {[%clk 0:00:06]} 43. Rd3
{[%clk 0:00:03]} 43... Rxd4 {[%clk 0:00:06.1]} 44. Rxd4 {[%clk 0:00:03.4]} 44...
Bxd4 {[%clk 0:00:07]} 45. Ne2 {[%clk 0:00:04.3]} 45... Bf2 {[%clk 0:00:07]} 46.
g3 {[%clk 0:00:04.3]} 46... d4 {[%clk 0:00:07.4]} 47. Kb1 {[%clk 0:00:04]} 47...
d3 {[%clk 0:00:07.6]} 48. Nf4 {[%clk 0:00:04.2]} 48... Bxg3 {[%clk 0:00:07.8]}
49. Nxd3 {[%clk 0:00:04.5]} 49... Bxh4 {[%clk 0:00:08.3]} 50. b5 {[%clk
0:00:04.2]} 50... Bd8 {[%clk 0:00:06.8]} 51. Kc2 {[%clk 0:00:03]} 51... h4
{[%clk 0:00:07.1]} 52. Nf4 {[%clk 0:00:02.4]} 52... Bc7 {[%clk 0:00:07]} 53. Nh3
{[%clk 0:00:02.4]} 53... Kg7 {[%clk 0:00:04.8]} 54. Kc3 {[%clk 0:00:02.6]} 54...
Kf6 {[%clk 0:00:05.1]} 55. Kb4 {[%clk 0:00:03.1]} 55... Kf5 {[%clk 0:00:04.3]}
56. Kxa4 {[%clk 0:00:03.4]} 56... g5 {[%clk 0:00:04.7]} 57. Kb4 {[%clk
0:00:03.2]} 57... g4 {[%clk 0:00:05.2]} 58. fxg4+ {[%clk 0:00:04.1]} 58... Kxg4
{[%clk 0:00:05.7]} 59. Ng1 {[%clk 0:00:04.8]} 59... h3 {[%clk 0:00:04.8]} 60.
Nxh3 {[%clk 0:00:05]} 60... Kxh3 {[%clk 0:00:05.7]} 61. a4 {[%clk 0:00:05.9]}
61... f5 {[%clk 0:00:05.9]} 62. a5 {[%clk 0:00:05.9]} 62... f4 {[%clk
0:00:06.1]} 63. b6 {[%clk 0:00:06.4]} 63... Bb8 {[%clk 0:00:05.5]} 64. a6 {[%clk
0:00:06.8]} 64... f3 {[%clk 0:00:06.1]} 65. a7 {[%clk 0:00:07.3]} 65... Bxa7
{[%clk 0:00:06]} 66. bxa7 {[%clk 0:00:07.8]} 66... f2 {[%clk 0:00:06.8]} 67.
a8=Q {[%clk 0:00:08.2]} 67... f1=Q {[%clk 0:00:06.1]} 68. Qh8+ {[%clk
0:00:08.3]} 68... Kg2 {[%clk 0:00:06.1]} 69. Qg8+ {[%clk 0:00:08.7]} 69... Kh3
{[%clk 0:00:06.2]} 70. Qxe6+ {[%clk 0:00:08.8]} 70... Kg3 {[%clk 0:00:06.3]} 71.
Qg6+ {[%clk 0:00:08.9]} 71... Kh3 {[%clk 0:00:06.4]} 72. Qh6+ {[%clk 0:00:09]}
72... Kg3 {[%clk 0:00:06.6]} 73. Qe3+ {[%clk 0:00:09.2]} 73... Kh4 {[%clk
0:00:05.4]} 74. Qd4+ {[%clk 0:00:09.6]} 74... Kg3 {[%clk 0:00:05.4]} 75. Qc3+
{[%clk 0:00:10]} 75... Kh2 {[%clk 0:00:04.5]} 76. Ka4 {[%clk 0:00:10.2]} 76...
Qa6+ {[%clk 0:00:02.4]} 77. Kb3 {[%clk 0:00:10.5]} 77... Qb6+ {[%clk 0:00:02.3]}
78. Kc2 {[%clk 0:00:10.8]} 1-0

[Event "*** SCC Grand Prix: Titled Tuesday Blitz"]
[Site "Chess.com"]
[Date "2020.06.23"]
[Round "6"]
[White "StephenDedalus83"]
[Black "Bigfish1995"]
[Result "1-0"]
[WhiteElo "2778"]
[BlackElo "3028"]
[TimeControl "180+1"]
[EndTime "11:08:55 PDT"]
[Termination "StephenDedalus83 won by resignation"]

1. e4 {[%clk 0:03:00.9]} 1... e5 {[%clk 0:02:59.3]} 2. Nf3 {[%clk 0:03:00.7]}
2... Nc6 {[%clk 0:02:59.4]} 3. Bb5 {[%clk 0:03:00.8]} 3... Nf6 {[%clk
0:02:59.2]} 4. O-O {[%clk 0:02:59.4]} 4... Nxe4 {[%clk 0:02:56.4]} 5. d4 {[%clk
0:02:59.9]} 5... Nd6 {[%clk 0:02:56]} 6. Bxc6 {[%clk 0:03:00.4]} 6... dxc6
{[%clk 0:02:56.4]} 7. dxe5 {[%clk 0:03:01]} 7... Nf5 {[%clk 0:02:57]} 8. Qxd8+
{[%clk 0:03:01.4]} 8... Kxd8 {[%clk 0:02:57.9]} 9. Rd1+ {[%clk 0:03:01.4]} 9...
Ke8 {[%clk 0:02:57.7]} 10. h3 {[%clk 0:03:02]} 10... Ne7 {[%clk 0:02:54.7]} 11.
Bf4 {[%clk 0:03:01.3]} 11... Ng6 {[%clk 0:02:48.2]} 12. Bg3 {[%clk 0:03:01.2]}
12... Be7 {[%clk 0:02:46.1]} 13. Nc3 {[%clk 0:03:00.4]} 13... Nf8 {[%clk
0:02:23.5]} 14. Nd4 {[%clk 0:02:47.7]} 14... h5 {[%clk 0:02:17.9]} 15. f4 {[%clk
0:02:44.3]} 15... h4 {[%clk 0:02:15.6]} 16. Bf2 {[%clk 0:02:44]} 16... Rh5
{[%clk 0:02:14.5]} 17. Nce2 {[%clk 0:02:30.5]} 17... a6 {[%clk 0:02:13.2]} 18.
Rd2 {[%clk 0:02:10.7]} 18... c5 {[%clk 0:02:09.3]} 19. Nf3 {[%clk 0:02:09.7]}
19... Bf5 {[%clk 0:02:02.9]} 20. g4 {[%clk 0:02:03.3]} 20... Be4 {[%clk
0:01:48.1]} 21. gxh5 {[%clk 0:01:55.6]} 21... Bxf3 {[%clk 0:01:48]} 22. h6
{[%clk 0:01:55.1]} 22... gxh6 {[%clk 0:01:44.9]} 23. Be3 {[%clk 0:01:54.6]}
23... Ne6 {[%clk 0:01:34.5]} 24. Kf2 {[%clk 0:01:53.3]} 24... Be4 {[%clk
0:01:33.5]} 25. Nc3 {[%clk 0:01:52.7]} 25... Bf5 {[%clk 0:01:33.5]} 26. Nd5
{[%clk 0:01:51.4]} 26... Rd8 {[%clk 0:00:50.3]} 27. Rg1 {[%clk 0:01:28.8]} 27...
Kf8 {[%clk 0:00:34.4]} 28. Nf6 {[%clk 0:01:11.4]} 28... Rxd2+ {[%clk 0:00:30.3]}
29. Bxd2 {[%clk 0:01:12.3]} 29... Ng7 {[%clk 0:00:22.1]} 30. Be3 {[%clk
0:00:58.1]} 30... b6 {[%clk 0:00:20.4]} 31. c3 {[%clk 0:00:57]} 31... Bxh3
{[%clk 0:00:19]} 32. Rh1 {[%clk 0:00:55.9]} 32... Be6 {[%clk 0:00:18.2]} 33.
Rxh4 {[%clk 0:00:54.4]} 33... Nf5 {[%clk 0:00:18.5]} 34. Rh1 {[%clk 0:00:53.9]}
34... Bxf6 {[%clk 0:00:16.6]} 35. exf6 {[%clk 0:00:53.1]} 35... Bxa2 {[%clk
0:00:16.9]} 36. Rd1 {[%clk 0:00:48.7]} 36... Ke8 {[%clk 0:00:16.4]} 37. Kf3
{[%clk 0:00:48.7]} 37... Be6 {[%clk 0:00:16.2]} 38. Bf2 {[%clk 0:00:47.1]} 38...
a5 {[%clk 0:00:14.9]} 39. Ke4 {[%clk 0:00:47]} 39... Nd6+ {[%clk 0:00:14.4]} 40.
Kf3 {[%clk 0:00:45.7]} 40... Kd7 {[%clk 0:00:14.6]} 41. Be3 {[%clk 0:00:43.6]}
41... Kc6 {[%clk 0:00:14.6]} 42. Bc1 {[%clk 0:00:42.2]} 42... h5 {[%clk
0:00:14]} 43. Kg3 {[%clk 0:00:39.7]} 43... Ne4+ {[%clk 0:00:13.2]} 44. Kh4
{[%clk 0:00:37.4]} 44... Nxf6 {[%clk 0:00:13.7]} 45. Kg5 {[%clk 0:00:35.2]}
45... Ne4+ {[%clk 0:00:13.8]} 46. Kh4 {[%clk 0:00:30.4]} 46... Bg4 {[%clk
0:00:11.6]} 47. Rd8 {[%clk 0:00:29.1]} 47... f5 {[%clk 0:00:08.7]} 48. Be3
{[%clk 0:00:23.7]} 48... a4 {[%clk 0:00:08.9]} 49. Ra8 {[%clk 0:00:22.7]} 49...
Kb5 {[%clk 0:00:09.3]} 50. Ra7 {[%clk 0:00:22.8]} 50... c6 {[%clk 0:00:05.4]}
51. Ra8 {[%clk 0:00:20.5]} 51... Nd6 {[%clk 0:00:05.3]} 52. Bc1 {[%clk
0:00:19.6]} 52... Nc4 {[%clk 0:00:04.2]} 53. Kg5 {[%clk 0:00:19.5]} 53... Na5
{[%clk 0:00:03.1]} 54. Rb8 {[%clk 0:00:18.7]} 54... Nb3 {[%clk 0:00:02.6]} 55.
Be3 {[%clk 0:00:18.8]} 55... Ka6 {[%clk 0:00:03.1]} 56. Ra8+ {[%clk 0:00:18]}
56... Kb5 {[%clk 0:00:03.5]} 57. Rb8 {[%clk 0:00:18.3]} 57... Na5 {[%clk
0:00:03.1]} 58. Ra8 {[%clk 0:00:18]} 58... Nc4 {[%clk 0:00:02.8]} 59. Bc1 {[%clk
0:00:18.6]} 59... Nd6 {[%clk 0:00:03.6]} 60. Kh4 {[%clk 0:00:16.2]} 60... Ne4
{[%clk 0:00:02.8]} 61. Be3 {[%clk 0:00:15.5]} 61... Be2 {[%clk 0:00:03.4]} 62.
Bc1 {[%clk 0:00:14.9]} 62... Bd1 {[%clk 0:00:04]} 63. Be3 {[%clk 0:00:14.7]}
63... Kc4 {[%clk 0:00:04]} 64. Rb8 {[%clk 0:00:14.4]} 64... b5 {[%clk
0:00:04.1]} 65. Rb6 {[%clk 0:00:14.2]} 65... Kb3 {[%clk 0:00:04.2]} 66. Rxc6
{[%clk 0:00:13.2]} 66... Kxb2 {[%clk 0:00:04.7]} 67. Bxc5 {[%clk 0:00:13.1]}
67... Nxc5 {[%clk 0:00:04.3]} 68. Rxc5 {[%clk 0:00:12.9]} 68... Bg4 {[%clk
0:00:03.3]} 69. Rxb5+ {[%clk 0:00:12.6]} 69... Kxc3 {[%clk 0:00:03.8]} 70. Ra5
{[%clk 0:00:12.5]} 70... Kb4 {[%clk 0:00:04.3]} 71. Ra8 {[%clk 0:00:12.6]} 71...
a3 {[%clk 0:00:04.6]} 72. Rb8+ {[%clk 0:00:12.8]} 72... Kc3 {[%clk 0:00:05.1]}
73. Ra8 {[%clk 0:00:12.9]} 73... Kb2 {[%clk 0:00:05.3]} 74. Rb8+ {[%clk
0:00:12.7]} 74... Kc2 {[%clk 0:00:04.2]} 75. Ra8 {[%clk 0:00:12.6]} 75... Kb3
{[%clk 0:00:04.7]} 76. Rb8+ {[%clk 0:00:12.6]} 76... Ka2 {[%clk 0:00:05.6]} 77.
Ra8 {[%clk 0:00:10.6]} 77... Kb2 {[%clk 0:00:05.3]} 78. Rb8+ {[%clk 0:00:10.5]}
78... Ka1 {[%clk 0:00:05.7]} 79. Ra8 {[%clk 0:00:10.4]} 79... a2 {[%clk
0:00:05.7]} 80. Rb8 {[%clk 0:00:10.3]} 80... Bf3 {[%clk 0:00:06]} 81. Kg5 {[%clk
0:00:09.6]} 81... Bg4 {[%clk 0:00:06.5]} 82. Rb6 {[%clk 0:00:08.8]} 82... h4
{[%clk 0:00:04.3]} 83. Kxh4 {[%clk 0:00:08.7]} 83... Bf3 {[%clk 0:00:04.9]} 84.
Kg5 {[%clk 0:00:08.7]} 84... Be4 {[%clk 0:00:05.5]} 85. Kf6 {[%clk 0:00:09.1]}
85... Bd3 {[%clk 0:00:05.7]} 86. Ke5 {[%clk 0:00:09.6]} 86... Be4 {[%clk
0:00:06.6]} 87. Kd4 {[%clk 0:00:10.1]} 87... Bb1 {[%clk 0:00:07.1]} 88. Kc3
{[%clk 0:00:10.7]} 88... Be4 {[%clk 0:00:08]} 89. Rd6 {[%clk 0:00:09.5]} 89...
Bf3 {[%clk 0:00:06.2]} 90. Rb6 {[%clk 0:00:08.7]} 90... Be4 {[%clk 0:00:05.7]}
91. Kd2 {[%clk 0:00:08.5]} 91... Bd5 {[%clk 0:00:05.1]} 92. Kc1 {[%clk
0:00:08.7]} 92... Be4 {[%clk 0:00:04.9]} 93. Re6 {[%clk 0:00:09]} 93... Bd5
{[%clk 0:00:04.8]} 94. Re1 {[%clk 0:00:08.7]} 94... Be4 {[%clk 0:00:05.3]} 95.
Rd1 {[%clk 0:00:08.7]} 95... Bf3 {[%clk 0:00:05.5]} 96. Re1 {[%clk 0:00:08.7]}
96... Be4 {[%clk 0:00:05.9]} 97. Rg1 {[%clk 0:00:08.6]} 97... Bf3 {[%clk
0:00:06.1]} 98. Kc2+ {[%clk 0:00:07.2]} 1-0

[Event "*** SCC Grand Prix: Titled Tuesday Blitz"]
[Site "Chess.com"]
[Date "2020.06.23"]
[Round "6"]
[White "Paladin61"]
[Black "rasmussvane"]
[Result "0-1"]
[WhiteElo "2543"]
[BlackElo "2879"]
[TimeControl "180+1"]
[EndTime "11:08:59 PDT"]
[Termination "rasmussvane won by resignation"]

1. d4 {[%clk 0:02:55.1]} 1... d5 {[%clk 0:03:00.1]} 2. c4 {[%clk 0:02:55.2]}
2... e6 {[%clk 0:03:00.5]} 3. Nf3 {[%clk 0:02:55.3]} 3... a6 {[%clk 0:03:00.7]}
4. Bg5 {[%clk 0:02:52.7]} 4... Be7 {[%clk 0:02:59.4]} 5. Bxe7 {[%clk 0:02:52.2]}
5... Nxe7 {[%clk 0:03:00.3]} 6. Nbd2 {[%clk 0:02:51.7]} 6... O-O {[%clk
0:03:00.6]} 7. g3 {[%clk 0:02:51.6]} 7... dxc4 {[%clk 0:02:59.1]} 8. Nxc4 {[%clk
0:02:50.3]} 8... b5 {[%clk 0:02:59.6]} 9. Nce5 {[%clk 0:02:45.2]} 9... Bb7
{[%clk 0:02:56]} 10. Bg2 {[%clk 0:02:44.6]} 10... Nd7 {[%clk 0:02:42.3]} 11. Nd3
{[%clk 0:02:23.1]} 11... Rc8 {[%clk 0:02:25.6]} 12. b4 {[%clk 0:02:14.4]} 12...
Ng6 {[%clk 0:01:55.9]} 13. O-O {[%clk 0:02:01.4]} 13... Qf6 {[%clk 0:01:54.7]}
14. e3 {[%clk 0:01:47.6]} 14... Ra8 {[%clk 0:01:38.5]} 15. Rc1 {[%clk
0:01:33.3]} 15... Rfc8 {[%clk 0:01:37.9]} 16. Qe2 {[%clk 0:01:32.5]} 16... a5
{[%clk 0:01:33.9]} 17. a3 {[%clk 0:01:31.9]} 17... Bd5 {[%clk 0:01:31]} 18. Nd2
{[%clk 0:01:17.3]} 18... Bxg2 {[%clk 0:01:24.6]} 19. Kxg2 {[%clk 0:01:17.3]}
19... e5 {[%clk 0:01:25.2]} 20. d5 {[%clk 0:01:07.6]} 20... Qd6 {[%clk
0:01:12.5]} 21. e4 {[%clk 0:01:04.3]} 21... c6 {[%clk 0:01:11.6]} 22. dxc6
{[%clk 0:00:59]} 22... Rxc6 {[%clk 0:01:12.5]} 23. Rxc6 {[%clk 0:00:58.4]} 23...
Qxc6 {[%clk 0:01:13.4]} 24. Rc1 {[%clk 0:00:58]} 24... Qe6 {[%clk 0:00:59.2]}
25. Nc5 {[%clk 0:00:53]} 25... Nxc5 {[%clk 0:00:59.6]} 26. Rxc5 {[%clk
0:00:49.3]} 26... axb4 {[%clk 0:01:00]} 27. axb4 {[%clk 0:00:49.7]} 27... Ra2
{[%clk 0:00:56.7]} 28. Rxb5 {[%clk 0:00:40.7]} 28... h6 {[%clk 0:00:52.4]} 29.
Rd5 {[%clk 0:00:28.4]} 29... Ne7 {[%clk 0:00:48.2]} 30. Rd8+ {[%clk 0:00:28.2]}
30... Kh7 {[%clk 0:00:48.3]} 31. Qc4 {[%clk 0:00:25.8]} 31... Nc6 {[%clk
0:00:25.9]} 32. Qxe6 {[%clk 0:00:19.6]} 32... fxe6 {[%clk 0:00:26.8]} 33. Rd6
{[%clk 0:00:19.2]} 33... Nxb4 {[%clk 0:00:23.3]} 34. Nf3 {[%clk 0:00:19.1]}
34... Re2 {[%clk 0:00:23.7]} 35. Nxe5 {[%clk 0:00:13.2]} 35... Rxe4 {[%clk
0:00:23.1]} 36. Nf3 {[%clk 0:00:10.7]} 36... Nd5 {[%clk 0:00:17.2]} 37. Ra6
{[%clk 0:00:07]} 37... Kg6 {[%clk 0:00:14.2]} 38. Kf1 {[%clk 0:00:07.4]} 38...
Kf6 {[%clk 0:00:14.2]} 39. Ra1 {[%clk 0:00:06.5]} 39... Rb4 {[%clk 0:00:13.6]}
40. Re1 {[%clk 0:00:06.7]} 40... g5 {[%clk 0:00:13.8]} 41. h3 {[%clk 0:00:05.4]}
41... Rb2 {[%clk 0:00:11.7]} 42. Re2 {[%clk 0:00:04.8]} 42... Rb3 {[%clk
0:00:10.8]} 43. Kg2 {[%clk 0:00:04.9]} 43... Ra3 {[%clk 0:00:11]} 44. Re1 {[%clk
0:00:04.5]} 44... Ra4 {[%clk 0:00:09.6]} 45. Re2 {[%clk 0:00:04.2]} 45... Ne7
{[%clk 0:00:09.9]} 46. Re1 {[%clk 0:00:04.2]} 46... Nf5 {[%clk 0:00:10.4]} 47.
Re2 {[%clk 0:00:04.4]} 47... h5 {[%clk 0:00:10.2]} 48. Re1 {[%clk 0:00:04.5]}
48... Ra2 {[%clk 0:00:10.7]} 49. Kf1 {[%clk 0:00:03.8]} 49... Ra3 {[%clk
0:00:10.1]} 50. Kg2 {[%clk 0:00:03.4]} 50... Rb3 {[%clk 0:00:10.6]} 51. Ng1
{[%clk 0:00:03.2]} 51... g4 {[%clk 0:00:09.5]} 52. hxg4 {[%clk 0:00:03.1]} 52...
hxg4 {[%clk 0:00:10.4]} 53. Ne2 {[%clk 0:00:03.4]} 53... e5 {[%clk 0:00:10.8]}
54. Kf1 {[%clk 0:00:03]} 54... Ke6 {[%clk 0:00:09.3]} 55. Nf4+ {[%clk
0:00:02.6]} 55... Kd6 {[%clk 0:00:09.4]} 56. Ng2 {[%clk 0:00:02.8]} 56... Nd4
{[%clk 0:00:07.4]} 57. Nh4 {[%clk 0:00:02.5]} 57... Ke6 {[%clk 0:00:06.9]} 58.
Re4 {[%clk 0:00:01.9]} 58... Rb1+ {[%clk 0:00:04.3]} 59. Kg2 {[%clk 0:00:02.3]}
59... Rb2 {[%clk 0:00:05.2]} 60. Rxg4 {[%clk 0:00:02.7]} 60... Nc2 {[%clk
0:00:06.1]} 61. Rg6+ {[%clk 0:00:03]} 61... Kd5 {[%clk 0:00:06.5]} 62. Kf1
{[%clk 0:00:03.6]} 62... Rb1+ {[%clk 0:00:06]} 63. Kg2 {[%clk 0:00:03.5]} 63...
Rb2 {[%clk 0:00:06.9]} 64. Nf5 {[%clk 0:00:03.4]} 64... Ne1+ {[%clk 0:00:07]}
65. Kf1 {[%clk 0:00:03.4]} 65... Nf3 {[%clk 0:00:06.9]} 66. Ne3+ {[%clk
0:00:04.2]} 66... Ke4 {[%clk 0:00:07.1]} 67. Rg4+ {[%clk 0:00:04.3]} 67... Kd3
{[%clk 0:00:07.6]} 68. Kg2 {[%clk 0:00:04.6]} 68... e4 {[%clk 0:00:07.9]} 69.
Rg8 {[%clk 0:00:04.2]} 69... Rb1 {[%clk 0:00:08.2]} 70. Rd8+ {[%clk 0:00:03.7]}
70... Ke2 {[%clk 0:00:08.7]} 71. Ng4 {[%clk 0:00:02.3]} 71... Rg1+ {[%clk
0:00:07.7]} 72. Kh3 {[%clk 0:00:02.8]} 72... Kf1 {[%clk 0:00:07.2]} 73. Re8
{[%clk 0:00:02.4]} 73... Rh1+ {[%clk 0:00:06.5]} 74. Nh2+ {[%clk 0:00:02.4]}
74... Rxh2+ {[%clk 0:00:06.8]} 75. Kg4 {[%clk 0:00:03.2]} 75... Nd2 {[%clk
0:00:07.7]} 76. Rd8 {[%clk 0:00:03.1]} 76... Rxf2 {[%clk 0:00:07.7]} 77. Re8
{[%clk 0:00:02.8]} 77... Ke2 {[%clk 0:00:07.4]} 78. Kh5 {[%clk 0:00:03.1]} 78...
e3 {[%clk 0:00:08]} 79. g4 {[%clk 0:00:03.5]} 79... Rh2+ {[%clk 0:00:08.4]} 80.
Kg6 {[%clk 0:00:03.4]} 80... Nf3 {[%clk 0:00:09.3]} 81. Kf5 {[%clk 0:00:03.5]}
81... Kf2 {[%clk 0:00:08.6]} 82. g5 {[%clk 0:00:03.1]} 82... e2 {[%clk 0:00:08]}
83. g6 {[%clk 0:00:02.7]} 83... Nh4+ {[%clk 0:00:08]} 84. Kg5 {[%clk 0:00:02.2]}
84... Nxg6 {[%clk 0:00:08.9]} 85. Kxg6 {[%clk 0:00:02.4]} 85... e1=Q {[%clk
0:00:08.9]} 86. Rxe1 {[%clk 0:00:02.1]} 86... Kxe1 {[%clk 0:00:09.8]} 0-1